fUST/lending_fUST_20240915
["ID","MTS","AMOUNT","RATE_DAILY","PERIOD"]
[338166067,1726329938151,-295.711292,0.00013699,2]
[338166068,1726329938172,-295.711292,0.00020187,2]
[338166069,1726329938194,-168.35974,0.00020568,2]
[338166070,1726329938215,-309.87468738,0.000209,2]
[338166071,1726329938236,-168.35974,0.00020925,2]
[338166072,1726329938257,-1000.0,0.00021,21]
[338166073,1726329938280,-168.35974,0.00021283,2]
[338166074,1726329938303,-168.35974,0.0002164,2]
[338166075,1726329938325,-2062.86061142,0.00021775,2]
[338166076,1726329938349,-475.0,0.00021875,3]
[338166077,1726329938371,-8415.9984545,0.00021875,3]
[338166109,1726330231876,-289.890163,0.00013699,2]
[338166112,1726330231893,-289.890163,0.00020187,2]
[338166114,1726330231907,-445.35774218,0.00020653,2]
[338166116,1726330231923,-973.48142112,0.00020653,2]
[338166119,1726330231934,-250.0,0.00021,2]
[338166121,1726330231944,-1805.00303501,0.00021785,2]
[338166123,1726330231954,-150.0,0.000218,2]
[338166125,1726330231965,-250.0,0.000218,3]
[338166127,1726330231977,-1723.42554387,0.0002188,2]
[338166132,1726330232014,-2415.61310705,0.0002188,2]
[338166134,1726330232028,-1727.25,0.0002188,2]
[338166229,1726330243023,-1624.2704996,0.0002188,2]
[338166251,1726331147164,-306.480268,0.00013699,2]
[338166252,1726331147186,-306.480268,0.00020187,2]
[338166253,1726331147207,-177.958076,0.00020273,2]
[338166254,1726331147228,-1622.44763159,0.00020344,2]
[338166310,1726331432076,-1125.34105446,0.00020344,2]
[338166316,1726331432115,-252.21131395,0.00020344,2]
[338166318,1726331432125,-61.74484584,0.00020438,2]
[338166395,1726331438261,-179.04765336,0.00020438,2]
[338166397,1726331438271,-250.0,0.00020555,2]
[338166400,1726331438280,-500.0,0.0002071,2]
[338166402,1726331438290,-500.0,0.0002121,2]
[338166404,1726331438299,-500.0,0.0002171,2]
[338166406,1726331438308,-830.54886404,0.00021731,2]
[338166408,1726331438317,-1747.87619331,0.00021741,2]
[338166410,1726331438327,-163.33333366,0.0002178,2]
[338166412,1726331438336,-150.112233,0.000218,4]
[338166414,1726331438346,-150.112233,0.000218,4]
[338166416,1726331438355,-150.112233,0.000218,5]
[338166418,1726331438364,-150.112233,0.000218,2]
[338166420,1726331438373,-150.112233,0.000218,3]
[338166422,1726331438382,-150.112233,0.000218,2]
[338166424,1726331438392,-152.90491056,0.000218,2]
[338166426,1726331438401,-500.0,0.00021839,2]
[338166428,1726331438410,-179.16854005,0.00021839,2]
[338166430,1726331438420,-500.0,0.00021839,2]
[338166432,1726331438430,-500.0,0.00021839,2]
[338166434,1726331438439,-500.0,0.00021839,2]
[338166436,1726331438449,-647.61310565,0.00021839,2]
[338166438,1726331438458,-587.16626677,0.00021839,2]
[338166440,1726331438467,-500.0,0.00021839,2]
[338166442,1726331438476,-500.0,0.00021839,2]
[338166445,1726331438486,-500.0,0.00021839,2]
[338166447,1726331438496,-500.0,0.00021839,2]
[338166449,1726331438506,-500.0,0.00021839,2]
[338166451,1726331438515,-462.92549284,0.00021839,2]
[338166453,1726331438525,-500.0,0.00021839,2]
[338166455,1726331438535,-500.0,0.00021839,2]
[338166457,1726331438544,-7048.96498439,0.0002184,5]
[338166459,1726331438553,-3829.93622629,0.0002184,5]
[338166462,1726331438566,-68219.86907075,0.0002184,5]
[338166464,1726331438575,-28156.8134356,0.0002184,3]
[338166544,1726331440127,-95098.6788074,0.0002184,3]
[338166545,1726331440138,-66281.55899505,0.0002184,3]
[338166561,1726331443144,-500.0,0.00021839,2]
[338166562,1726331443156,-500.0,0.00021839,2]
[338166563,1726331443168,-500.0,0.00021839,2]
[338166564,1726331443178,-686.4889111,0.00021839,2]
[338166565,1726331443190,-623.5856166,0.00021839,2]
[338166566,1726331443200,-686.4889111,0.00021839,2]
[338166567,1726331443209,-686.4889111,0.00021839,2]
[338166568,1726331443222,-500.0,0.00021839,2]
[338166569,1726331443231,-686.4889111,0.00021839,2]
[338166570,1726331443241,-500.0,0.00021839,2]
[338166571,1726331443250,-418.96710657,0.00021839,2]
[338166572,1726331443260,-500.0,0.00021839,2]
[338166573,1726331443270,-686.4889111,0.00021839,2]
[338166574,1726331443281,-686.4889111,0.00021839,2]
[338166575,1726331443293,-500.0,0.00021839,2]
[338166576,1726331443302,-686.4889111,0.00021839,2]
[338166577,1726331443312,-500.0,0.00021839,2]
[338166578,1726331443322,-686.4889111,0.00021839,2]
[338166579,1726331443334,-686.4889111,0.00021839,2]
[338166580,1726331443345,-686.4889111,0.00021839,2]
[338166581,1726331443356,-686.4889111,0.00021839,2]
[338166582,1726331443367,-38783.10962828,0.0002184,3]
[338166583,1726331443420,-59492.13499483,0.0002184,3]
[338166588,1726331772242,-275.832241,0.00013699,2]
[338166593,1726332350124,-275.832241,0.00020187,2]
[338166594,1726332350146,-86.29438915,0.00020681,2]
[338166595,1726332374820,270.114808,0.00013699,2]
[338166680,1726332640305,-270.114808,0.00020187,2]
[338166681,1726332640315,-80.37227885,0.00020681,2]
[338166682,1726332640324,-531.079893,0.0002071,2]
[338166683,1726332640333,-1000.0,0.00021,21]
[338166684,1726332640344,-1529.39166919,0.0002168,2]
[338166685,1726332640354,-998.90631029,0.00021729,2]
[338166686,1726332640364,-300.0,0.00021759,2]
[338166687,1726332640373,-42509.44084948,0.0002176,2]
[338166688,1726332640383,-792.64,0.0002177,3]
[338166689,1726332640392,-396.32,0.0002177,3]
[338166690,1726332640402,-198.16,0.0002177,3]
[338166691,1726332640411,-594.53,0.0002177,3]
[338166692,1726332640421,-151.0,0.0002178,2]
[338166693,1726332640431,-653.166263,0.0002178,2]
[338166694,1726332640441,-653.166263,0.0002178,2]
[338166695,1726332640451,-230.314184,0.0002178,2]
[338166696,1726332640461,-230.314184,0.0002178,2]
[338166697,1726332640471,-151.0,0.0002178,2]
[338166698,1726332640480,-151.0,0.0002178,2]
[338166699,1726332640490,-383.756382,0.0002178,2]
[338166700,1726332640504,-151.0,0.0002178,2]
[338166701,1726332640514,-185.938239,0.0002178,2]
[338166702,1726332640524,-383.756382,0.0002178,2]
[338166703,1726332640533,-151.0,0.0002178,2]
[338166704,1726332640544,-151.0,0.0002178,2]
[338166705,1726332640553,-151.0,0.0002178,2]
[338166706,1726332640563,-151.0,0.0002178,2]
[338166707,1726332640574,-268.125566,0.0002178,2]
[338166708,1726332640584,-315.837137,0.0002178,2]
[338166709,1726332640594,-268.125566,0.0002178,2]
[338166710,1726332640603,-315.837137,0.0002178,2]
[338166711,1726332640613,-1285.03149,0.0002178,2]
[338166712,1726332640623,-1285.03149,0.0002178,2]
[338166713,1726332640632,-151.0,0.0002178,2]
[338166714,1726332640641,-151.0,0.0002178,2]
[338166715,1726332640651,-622.752789,0.0002178,2]
[338166716,1726332640660,-622.752789,0.0002178,2]
[338166717,1726332640669,-151.0,0.0002178,2]
[338166718,1726332640678,-363.056554,0.0002178,2]
[338166719,1726332640688,-363.056554,0.0002178,2]
[338166720,1726332640697,-151.0,0.0002178,2]
[338166721,1726332640706,-151.0,0.0002178,2]
[338166722,1726332640715,-305.30668,0.0002178,2]
[338166723,1726332640724,-305.30668,0.0002178,2]
[338166724,1726332640734,-81509.7557738,0.0002178,3]
[338166725,1726332640744,-67148.9730539,0.0002179,3]
[338166726,1726332640753,-321.623078,0.0002179,2]
[338166727,1726332640763,-321.623078,0.0002179,2]
[338166728,1726332640774,-321.623078,0.0002179,2]
[338166729,1726332640784,-321.623078,0.0002179,2]
[338166730,1726332640794,-151.0,0.0002179,2]
[338166731,1726332640807,-151.0,0.0002179,2]
[338166732,1726332640817,-151.0,0.0002179,2]
[338166733,1726332640828,-151.0,0.0002179,2]
[338166734,1726332640837,-5286.72373829,0.0002179,5]
[338166735,1726332640848,-65796.82343283,0.0002179,3]
[338166778,1726332643362,-18812.50000007,0.0002179,3]
[338166781,1726332643375,-78410.1881151,0.0002179,3]
[338166783,1726332643384,-33517.7702081,0.00021791,3]
[338166787,1726332643417,-59492.13499483,0.00021791,3]
[338167007,1726332646341,-151.0,0.0002179,2]
[338167008,1726332646350,-151.0,0.0002179,2]
[338167009,1726332646360,-271.0,0.00021791,3]
[338167010,1726332646372,-745.1595877,0.00021791,3]
[338167011,1726332646404,-68993.44675737,0.00021791,3]
[338167012,1726332646414,-500.0,0.00021799,2]
[338167013,1726332646424,-411.01638673,0.00021799,2]
[338167014,1726332646435,-500.0,0.00021799,2]
[338167015,1726332646448,-500.0,0.00021799,2]
[338167016,1726332646458,-500.0,0.00021799,2]
[338167017,1726332646468,-500.0,0.00021799,2]
[338167018,1726332646478,-303.32917396,0.00021799,2]
[338167019,1726332646489,-486.50993162,0.00021799,2]
[338167020,1726332646503,-500.0,0.00021799,2]
[338167021,1726332646515,-500.0,0.00021799,2]
[338167022,1726332646524,-500.0,0.00021799,2]
[338167023,1726332646534,-500.0,0.00021799,2]
[338167024,1726332646544,-500.0,0.00021799,2]
[338167025,1726332646555,-500.0,0.00021799,2]
[338167026,1726332646564,-500.0,0.00021799,2]
[338167027,1726332646574,-500.0,0.00021799,2]
[338167028,1726332646583,-500.0,0.00021799,2]
[338167029,1726332646592,-500.0,0.00021799,2]
[338167030,1726332646604,-543.2769746,0.00021799,2]
[338167031,1726332646615,-500.0,0.00021799,2]
[338167032,1726332646626,-500.0,0.00021799,2]
[338167033,1726332646636,-500.0,0.00021799,2]
[338167034,1726332646648,-500.0,0.00021799,2]
[338167035,1726332646659,-3000.0,0.000218,2]
[338167036,1726332646669,-150.112233,0.000218,4]
[338167037,1726332646679,-150.112233,0.000218,3]
[338167038,1726332646689,-150.112233,0.000218,3]
[338167039,1726332646701,-150.112233,0.000218,3]
[338167040,1726332646711,-150.112233,0.000218,3]
[338167041,1726332646720,-150.112233,0.000218,2]
[338167042,1726332646730,-150.112233,0.000218,5]
[338167043,1726332646740,-150.112233,0.000218,5]
[338167044,1726332646749,-150.112233,0.000218,4]
[338167045,1726332646759,-150.112233,0.000218,2]
[338167046,1726332646768,-150.112233,0.000218,2]
[338167047,1726332646778,-150.112233,0.000218,2]
[338167048,1726332646788,-150.112233,0.000218,5]
[338167049,1726332646797,-150.112233,0.000218,2]
[338167050,1726332646806,-209.787357,0.000218,4]
[338167051,1726332646815,-321.623078,0.000218,2]
[338167052,1726332646826,-321.623078,0.000218,2]
[338167053,1726332646836,-321.623078,0.000218,2]
[338167054,1726332646847,-321.623078,0.000218,2]
[338167055,1726332646858,-151.0,0.000218,2]
[338167056,1726332646869,-153.792981,0.000218,2]
[338167057,1726332646880,-151.0,0.000218,2]
[338167058,1726332646892,-151.0,0.000218,2]
[338167059,1726332646902,-67148.9730539,0.000218,3]
[338167060,1726332646917,-54037.35397278,0.000218,5]
[338167061,1726332646928,-7393.56151601,0.000218,3]
[338167062,1726332646942,-4230.20684705,0.000218,3]
[338167065,1726332872560,264.537702,0.00013699,2]
[338167075,1726333382571,272.083318,0.00013699,2]
[338167078,1726333750167,-160.01037,0.00019388,2]
[338167079,1726333750197,-160.01037,0.00019514,2]
[338167080,1726333750223,-160.01037,0.0001964,2]
[338167081,1726333751310,250.0,0.00018934,2]
[338167131,1726333832694,-160.01037,0.00019767,2]
[338167133,1726333832703,-160.01037,0.00019893,2]
[338167135,1726333832713,-160.01037,0.00020019,2]
[338167136,1726333832723,-199.59061192,0.00020045,2]
[338167138,1726333832732,-300.0,0.00020086,2]
[338167140,1726333832742,-300.0,0.00020086,2]
[338167141,1726333832751,-2011.359709,0.00020087,2]
[338167196,1726333838636,-53198.86200567,0.00020087,2]
[338167197,1726333838647,-160.01037,0.00020146,2]
[338167198,1726333838657,-272.083318,0.00020187,2]
[338167200,1726333838669,-160.01037,0.00020272,2]
[338167201,1726333838679,-169.060172,0.00020315,2]
[338167202,1726333838693,-160.01037,0.00020398,2]
[338167203,1726333838703,-2629.282004,0.00020554,2]
[338167204,1726333838714,-2000.0,0.00021,2]
[338167205,1726333838724,-502.0,0.00021,2]
[338167206,1726333838734,-1000.0,0.00021,21]
[338167207,1726333838744,-1000.0,0.00021659,2]
[338167208,1726333838754,-462.37,0.00021669,3]
[338167209,1726333838764,-231.18,0.00021669,3]
[338167210,1726333838774,-693.59,0.00021669,3]
[338167211,1726333838783,-318.11087631,0.0002167,2]
[338167212,1726333838793,-393.3146938,0.0002167,2]
[338167213,1726333838803,-393.31469376,0.00021673,2]
[338167214,1726333838813,-393.31469376,0.00021676,2]
[338167215,1726333838825,-1103.1573421,0.00021677,2]
[338167216,1726333838836,-393.31469376,0.00021678,2]
[338167217,1726333838848,-67655.7321018,0.00021679,3]
[338167218,1726333838859,-393.31469376,0.00021681,2]
[338167219,1726333838870,-500.0,0.00021688,2]
[338167220,1726333838881,-500.0,0.00021688,2]
[338167221,1726333838892,-500.0,0.00021688,2]
[338167222,1726333838904,-500.0,0.00021688,2]
[338167223,1726333838914,-500.0,0.00021688,2]
[338167224,1726333838923,-500.0,0.00021688,2]
[338167225,1726333838933,-538.79818231,0.00021688,2]
[338167226,1726333838943,-500.0,0.00021688,2]
[338167227,1726333838954,-500.0,0.00021688,2]
[338167228,1726333838966,-220.65324085,0.00021688,2]
[338167229,1726333838977,-500.0,0.00021688,2]
[338167230,1726333838987,-500.0,0.00021688,2]
[338167231,1726333838998,-500.0,0.00021688,2]
[338167232,1726333839007,-500.0,0.00021688,2]
[338167233,1726333839017,-500.0,0.00021688,2]
[338167234,1726333839026,-500.0,0.00021688,2]
[338167235,1726333839036,-500.0,0.00021688,2]
[338167236,1726333839047,-500.0,0.00021688,2]
[338167237,1726333839057,-500.0,0.00021688,2]
[338167238,1726333839068,-500.0,0.00021688,2]
[338167239,1726333839082,-500.0,0.00021688,2]
[338167240,1726333839093,-500.0,0.00021688,2]
[338167241,1726333839104,-500.0,0.00021688,2]
[338167242,1726333839116,-500.0,0.00021688,2]
[338167243,1726333839126,-500.0,0.00021688,2]
[338167244,1726333839136,-500.0,0.00021688,2]
[338167245,1726333839149,-500.0,0.00021688,2]
[338167246,1726333839158,-500.0,0.00021688,2]
[338167247,1726333839167,-500.0,0.00021688,2]
[338167248,1726333839176,-622.78918607,0.00021688,2]
[338167249,1726333839186,-1156.528341,0.00021689,2]
[338167250,1726333839196,-1156.528341,0.00021689,2]
[338167251,1726333839205,-151.0,0.00021689,2]
[338167252,1726333839215,-151.0,0.00021689,2]
[338167253,1726333839226,-192.973846,0.00021689,2]
[338167254,1726333839236,-151.0,0.00021689,2]
[338167255,1726333839246,-192.973846,0.00021689,2]
[338167256,1726333839259,-2960.29237343,0.00021689,3]
[338167257,1726333839775,-30608.68194823,0.00021689,3]
[338167287,1726333843436,-28535.51477254,0.00021689,3]
[338167288,1726333843447,-11093.82928046,0.00021689,3]
[338167289,1726333843548,-59492.13499483,0.00021689,3]
[338167297,1726333846431,-7170.10603174,0.00021689,3]
[338167302,1726333971758,265.237642,0.00013699,2]
[338167319,1726334652575,271.709636,0.00013699,2]
[338167325,1726334758168,-168.359741,0.00019183,2]
[338167326,1726334758191,-598.40045402,0.00019974,2]
[338167336,1726334919331,4705.60286472,0.0002056,120]
[338167344,1726334958105,-345.9975101,0.00018991,2]
[338167345,1726334958126,-309.5210958,0.00019016,2]
[338167359,1726335032520,-733.61959976,0.000199,2]
[338167361,1726335032530,-1078.18659627,0.00019974,2]
[338167363,1726335032539,-199.737156,0.00019974,2]
[338167364,1726335032549,-231.18,0.0001998,3]
[338167365,1726335032558,-192.65,0.0001998,3]
[338167366,1726335032568,-577.97,0.0001998,3]
[338167367,1726335032578,-300.0,0.00019989,2]
[338167368,1726335032588,-300.0,0.00019989,2]
[338167369,1726335032598,-14252.63316143,0.0001999,3]
[338167370,1726335032611,-809.97140976,0.0001999,3]
[338167381,1726335038772,-907.74942613,0.0001999,3]
[338167382,1726335038832,-473.21000055,0.0001999,3]
[338167384,1726335038844,-3495.13254434,0.0001999,3]
[338167386,1726335038856,-39922.19525099,0.0001999,3]
[338167388,1726335038866,-16659.14787287,0.0001999,3]
[338167390,1726335038881,-40766.05582903,0.0001999,3]
[338167392,1726335038891,-500.0,0.00019999,2]
[338167394,1726335038901,-402.53213179,0.00019999,2]
[338167396,1726335038910,-635.62813787,0.00019999,2]
[338167398,1726335038920,-60000.0,0.0002,2]
[338167400,1726335038929,-310.25137518,0.0002,2]
[338167402,1726335038939,-47367.01581365,0.0002,2]
[338167404,1726335038948,-199.737156,0.00020074,2]
[338167406,1726335038957,-3000.0,0.00020087,2]
[338167408,1726335038967,-1783.7792803,0.00020109,2]
[338167410,1726335038976,-168.359741,0.00020183,2]
[338167412,1726335038986,-271.709636,0.00020187,2]
[338167414,1726335038995,-733.61959975,0.0002036,2]
[338167415,1726335039005,-177.894862,0.00020565,2]
[338167416,1726335039015,-177.894862,0.00020599,2]
[338167417,1726335039024,-177.894862,0.00020633,2]
[338167418,1726335039033,-177.894862,0.00020668,2]
[338167419,1726335039043,-733.61959975,0.00020819,2]
[338167420,1726335039052,-1676.58705027,0.00020824,2]
[338167421,1726335039062,-733.61959975,0.00021279,2]
[338167422,1726335039076,-385.3,0.0002135,3]
[338167423,1726335039085,-500.0,0.00021582,2]
[338167424,1726335039095,-500.0,0.00021582,2]
[338167425,1726335039105,-500.0,0.00021582,2]
[338167426,1726335039115,-500.0,0.00021582,2]
[338167427,1726335039126,-500.0,0.00021582,2]
[338167428,1726335039136,-500.0,0.00021582,2]
[338167429,1726335039145,-495.13254434,0.00021582,2]
[338167430,1726335039156,-1000.0,0.00021608,2]
[338167431,1726335039166,-1000.79791438,0.00021639,2]
[338167432,1726335039176,-3965.04280372,0.0002164,5]
[338167433,1726335039186,-59860.8917932,0.0002164,3]
[338167434,1726335039197,-57425.2037019,0.0002164,3]
[338167435,1726335039208,-1676.58705027,0.00021675,2]
[338167436,1726335039218,-663.8729052,0.00021689,3]
[338167437,1726335039227,-151.0,0.00021698,2]
[338167438,1726335039237,-151.0,0.00021698,2]
[338167439,1726335039247,-151.0,0.00021698,2]
[338167440,1726335039258,-196.134042,0.00021698,2]
[338167441,1726335039268,-196.134042,0.00021698,2]
[338167442,1726335039278,-59860.8917932,0.00021698,3]
[338167443,1726335039288,-57425.2037019,0.00021698,3]
[338167444,1726335039298,-150.112233,0.000217,5]
[338167445,1726335039308,-150.112233,0.000217,2]
[338167446,1726335039317,-150.112233,0.000217,5]
[338167447,1726335039326,-150.112233,0.000217,5]
[338167448,1726335039336,-59860.8917932,0.000217,3]
[338167449,1726335039346,-57425.2037019,0.000217,3]
[338167450,1726335039357,-151.0,0.00021701,2]
[338167451,1726335039378,-151.0,0.00021701,2]
[338167452,1726335039388,-151.0,0.00021701,2]
[338167453,1726335039399,-196.134042,0.00021701,2]
[338167454,1726335039408,-196.134042,0.00021701,2]
[338167455,1726335039418,-151.0,0.0002171,2]
[338167456,1726335039428,-151.0,0.0002171,2]
[338167457,1726335039438,-151.0,0.0002171,2]
[338167458,1726335039448,-151.0,0.0002171,2]
[338167459,1726335039459,-151.0,0.0002171,2]
[338167460,1726335039468,-151.0,0.0002171,2]
[338167461,1726335039479,-151.0,0.0002171,2]
[338167462,1726335039488,-151.0,0.0002171,2]
[338167463,1726335039498,-173.676462,0.0002171,2]
[338167464,1726335039508,-173.676462,0.0002171,2]
[338167465,1726335039518,-173.676462,0.0002171,2]
[338167466,1726335039528,-173.676462,0.0002171,2]
[338167467,1726335039539,-151.920782,0.0002171,2]
[338167468,1726335039549,-151.0,0.0002171,2]
[338167469,1726335039559,-151.0,0.0002171,2]
[338167470,1726335039570,-151.0,0.0002171,2]
[338167471,1726335039580,-151.0,0.0002171,2]
[338167472,1726335039591,-170.293685,0.0002171,2]
[338167473,1726335039600,-170.293685,0.0002171,2]
[338167474,1726335039615,-170.293685,0.0002171,2]
[338167475,1726335039627,-170.293685,0.0002171,2]
[338167476,1726335039639,-207.57504,0.0002171,2]
[338167477,1726335039649,-207.57504,0.0002171,2]
[338167478,1726335039659,-345.380744,0.0002171,2]
[338167479,1726335039669,-207.57504,0.0002171,2]
[338167480,1726335039680,-345.380744,0.0002171,2]
[338167481,1726335039689,-207.57504,0.0002171,2]
[338167482,1726335039699,-345.380744,0.0002171,2]
[338167483,1726335039709,-345.380744,0.0002171,2]
[338167484,1726335039719,-151.0,0.0002171,2]
[338167485,1726335039730,-151.0,0.0002171,2]
[338167486,1726335039740,-151.0,0.0002171,2]
[338167487,1726335039750,-151.0,0.0002171,2]
[338167488,1726335039761,-151.0,0.0002171,2]
[338167489,1726335039771,-151.0,0.0002171,2]
[338167490,1726335039781,-152.385037,0.0002171,2]
[338167491,1726335039791,-151.0,0.0002171,2]
[338167492,1726335039800,-151.0,0.0002171,2]
[338167493,1726335039811,-151.0,0.0002171,2]
[338167494,1726335039821,-151.0,0.0002171,2]
[338167495,1726335039831,-379.806169,0.0002171,2]
[338167496,1726335039841,-379.806169,0.0002171,2]
[338167497,1726335039851,-379.806169,0.0002171,2]
[338167498,1726335039862,-379.806169,0.0002171,2]
[338167499,1726335039872,-207.282765,0.0002171,2]
[338167500,1726335039887,-207.282765,0.0002171,2]
[338167501,1726335039897,-151.0,0.0002171,2]
[338167502,1726335039907,-207.282765,0.0002171,2]
[338167503,1726335039917,-151.0,0.0002171,2]
[338167504,1726335039927,-207.282765,0.0002171,2]
[338167505,1726335039938,-204.761869,0.0002171,2]
[338167506,1726335039948,-204.761869,0.0002171,2]
[338167507,1726335039959,-204.761869,0.0002171,2]
[338167508,1726335039969,-204.761869,0.0002171,2]
[338167509,1726335039979,-576.950855,0.0002171,2]
[338167510,1726335039988,-576.950855,0.0002171,2]
[338167511,1726335039998,-576.950855,0.0002171,2]
[338167512,1726335040008,-576.950855,0.0002171,2]
[338167513,1726335040018,-267.425992,0.0002171,2]
[338167514,1726335040028,-151.0,0.0002171,2]
[338167515,1726335040038,-284.253423,0.0002171,2]
[338167516,1726335040048,-284.253423,0.0002171,2]
[338167517,1726335040058,-151.0,0.0002171,2]
[338167518,1726335040068,-196.134042,0.0002171,2]
[338167519,1726335040078,-284.253423,0.0002171,2]
[338167520,1726335040088,-284.253423,0.0002171,2]
[338167521,1726335040097,-196.134042,0.0002171,2]
[338167522,1726335040107,-500.0,0.0002171,2]
[338167523,1726335040117,-500.0,0.0002171,2]
[338167524,1726335040127,-287.71147072,0.0002171,2]
[338167525,1726335040137,-528.99331712,0.0002171,2]
[338167526,1726335040146,-500.0,0.0002171,2]
[338167527,1726335040157,-192.657361,0.0002171,2]
[338167528,1726335040167,-528.99331712,0.0002171,2]
[338167529,1726335040176,-528.99331712,0.0002171,2]
[338167530,1726335040186,-540.55695214,0.0002171,2]
[338167531,1726335040196,-528.99331712,0.0002171,2]
[338167532,1726335040206,-528.99331712,0.0002171,2]
[338167533,1726335040216,-500.0,0.0002171,2]
[338167534,1726335040226,-528.99331712,0.0002171,2]
[338167535,1726335040235,-528.99331712,0.0002171,2]
[338167536,1726335040245,-528.99331712,0.0002171,2]
[338167537,1726335040254,-500.0,0.0002171,2]
[338167538,1726335040264,-528.99331712,0.0002171,2]
[338167539,1726335040273,-462.31930652,0.0002171,2]
[338167540,1726335040283,-528.99331712,0.0002171,2]
[338167541,1726335040292,-528.99331712,0.0002171,2]
[338167542,1726335040302,-528.99331712,0.0002171,2]
[338167543,1726335040312,-528.99331712,0.0002171,2]
[338167544,1726335040322,-528.99331712,0.0002171,2]
[338167545,1726335040331,-528.99331712,0.0002171,2]
[338167546,1726335040341,-542.21815004,0.0002171,2]
[338167548,1726335040351,-542.21815004,0.0002171,2]
[338167549,1726335040362,-542.21815004,0.0002171,2]
[338167550,1726335040372,-542.21815004,0.0002171,2]
[338167551,1726335040382,-542.21815004,0.0002171,2]
[338167552,1726335040392,-542.21815004,0.0002171,2]
[338167553,1726335040402,-542.21815004,0.0002171,2]
[338167554,1726335040411,-542.21815004,0.0002171,2]
[338167555,1726335040421,-542.21815004,0.0002171,2]
[338167556,1726335040431,-542.21815004,0.0002171,2]
[338167557,1726335040440,-527.26040796,0.0002171,2]
[338167558,1726335040450,-527.26040796,0.0002171,2]
[338167559,1726335040459,-527.26040796,0.0002171,2]
[338167560,1726335040468,-40528.01547959,0.00021711,5]
[338167561,1726335040478,-151.0,0.00021711,2]
[338167562,1726335040487,-281.465851,0.00021711,2]
[338167563,1726335040497,-196.134042,0.00021711,2]
[338167564,1726335040506,-196.134042,0.00021711,2]
[338167565,1726335040516,-59860.8917932,0.00021711,3]
[338167566,1726335040526,-57425.2037019,0.00021711,3]
[338167567,1726335040537,-500.0,0.00021718,2]
[338167568,1726335040546,-500.0,0.00021718,2]
[338167569,1726335040556,-500.0,0.00021718,2]
[338167570,1726335040566,-500.0,0.00021718,2]
[338167571,1726335040576,-500.0,0.00021718,2]
[338167572,1726335040585,-500.0,0.00021718,2]
[338167573,1726335040595,-151.0,0.00021719,2]
[338167574,1726335040606,-151.0,0.00021719,2]
[338167575,1726335040617,-151.0,0.00021719,2]
[338167576,1726335040628,-1040.875507,0.00021719,2]
[338167577,1726335040638,-1040.875507,0.00021719,2]
[338167578,1726335040647,-190.795562,0.00021719,2]
[338167579,1726335040656,-151.0,0.00021719,2]
[338167580,1726335040666,-151.0,0.00021719,2]
[338167581,1726335040675,-1482.467933,0.00021719,2]
[338167582,1726335040684,-1482.467933,0.00021719,2]
[338167584,1726335040695,-151.0,0.0002172,2]
[338167585,1726335040705,-153.616428,0.0002172,2]
[338167587,1726335040715,-1482.467933,0.0002172,2]
[338167588,1726335040725,-1482.467933,0.0002172,2]
[338167589,1726335040735,-151.0,0.0002172,2]
[338167590,1726335040746,-196.134042,0.0002172,2]
[338167591,1726335040756,-196.134042,0.0002172,2]
[338167592,1726335040768,-151.0,0.00021721,2]
[338167593,1726335040779,-151.0,0.00021721,2]
[338167594,1726335040790,-151.0,0.00021721,2]
[338167595,1726335040800,-151.0,0.00021721,2]